bitfinex/quotes_SOLUSD_20251103
["timestamp","ask_amount","ask_price","bid_price","bid_amount"]
[1762201870608,3.93588275,166.79,166.75,20.592]
[1762201870781,3.93588275,166.82,166.75,20.592]
[1762201871100,4.50588275,166.85,166.76,0.68]
[1762201871402,0.57,166.85,166.76,0.68]
[1762201871817,0.57,166.85,166.72,30.92426144]
[1762201871818,17.62452328,166.83,166.74,0.68]
[1762201872024,3.93588275,166.82,166.74,0.68]
[1762201872195,7.83569559,166.81,166.73,26.58969435]
[1762201872517,7.83569559,166.81,166.68,0.14216157]
[1762201872518,7.69353402,166.79,166.71,0.68]
[1762201872696,7.83569559,166.78,166.71,0.68]
[1762201872900,4.07804432,166.78,166.72,20.592]
[1762201873094,0.14216157,166.78,166.72,20.592]
[1762201873298,0.14216157,166.78,166.72,0.68]
[1762201874916,0.14216157,166.79,166.72,6.67785797]
[1762201875230,0.71216157,166.79,166.72,6.67785797]
[1762201875417,0.14216157,166.8,166.73,0.68]
[1762201875606,0.71216157,166.8,166.73,0.68]
[1762201875996,0.71216157,166.8,166.73,6.6773884]
[1762201876315,0.14216157,166.78,166.7,0.68]
[1762201877420,8.26353402,166.77,166.7,0.68]
[1762201878213,8.26353402,166.77,166.7,6.67844888]
[1762201878411,0.57,166.77,166.7,6.67844888]
[1762201878590,8.26353402,166.77,166.7,6.67844888]
[1762201879194,0.57,166.77,166.7,6.67844888]
[1762201880518,0.57,166.77,166.71,0.68]
[1762201881494,0.14216157,166.76,166.67,0.68]
[1762201881697,7.69353402,166.7,166.61,0.68]
[1762201882018,7.69353402,166.64,166.57,0.68]
[1762201882236,0.14216157,166.67,166.57,6.68327512]
[1762201882399,0.14216157,166.68,166.6,20.592]
[1762201882922,0.14216157,166.68,166.61,0.68]
[1762201883497,0.71216157,166.68,166.61,0.68]
[1762201883901,0.57,166.67,166.61,0.68]
[1762201884212,8.26353402,166.67,166.61,6.68199508]
[1762201884410,0.57,166.67,166.61,6.68199508]
[1762201885609,0.57,166.67,166.61,0.68]
[1762201886011,0.57,166.67,166.61,6.68200511]
[1762201886897,0.57,166.67,166.61,0.68]
[1762201887403,5.00198178,166.64,166.58,20.592]
[1762201887798,5.57198178,166.63,166.56,6.00372539]
[1762201888020,5.14414335,166.62,166.55,6.70414506]
[1762201888195,5.00198178,166.61,166.55,6.70414506]
[1762201888395,5.00198178,166.61,166.55,0.7]
[1762201888821,5.00198178,166.59,166.53,6.70482013]
[1762201888997,0.14216157,166.59,166.54,0.7]
[1762201890018,0.14216157,166.62,166.54,0.7]
[1762201890220,0.14216157,166.62,166.56,6.00384245]
[1762201890527,11.00227696,166.66,166.54,0.7]
[1762201890528,14.93297104,166.64,166.54,42.32793483]
[1762201890708,9.93098926,166.64,166.55,0.72]
[1762201890903,10.50098926,166.64,166.55,0.72]
[1762201892522,10.50098926,166.64,166.56,6.00384245]
[1762201892914,0.71216157,166.64,166.57,0.72]
[1762201893123,26.16398178,166.66,166.57,0.72]
[1762201893302,29.99264374,166.71,166.59,20.592]
[1762201893303,5.00198178,166.71,166.59,20.592]
[1762201893506,0.57,166.7,166.59,20.592]
[1762201893737,5.00198178,166.64,166.58,0.72]
[1762201893908,5.00198178,166.63,166.56,6.00384245]
[1762201894106,5.00198178,166.63,166.57,0.72]
[1762201894428,5.57198178,166.67,166.58,21.01092567]
[1762201894633,5.00198178,166.65,166.58,6.00312162]
[1762201895129,5.57198178,166.65,166.58,6.72312162]
[1762201895335,5.00198178,166.65,166.57,26.5954146]
[1762201895515,5.00198178,166.61,166.55,6.00418626]
[1762201895717,5.00198178,166.61,166.55,20.592]
[1762201896030,5.57198178,166.62,166.55,21.312]
[1762201896413,5.57198178,166.62,166.56,6.00384245]
[1762201896808,0.57,166.62,166.55,21.312]
[1762201897013,5.00198178,166.61,166.55,0.72]
[1762201897229,5.00198178,166.61,166.55,6.7241704]
[1762201897414,5.00198178,166.6,166.53,20.592]
[1762201897609,0.14216157,166.61,166.54,0.72]
[1762201898736,0.14216157,166.61,166.55,6.00420294]
[1762201898943,5.57198178,166.63,166.55,6.00420294]
[1762201899146,0.57,166.67,166.58,20.592]
[1762201899639,3.88721737,166.68,166.59,0.72]
[1762201899822,0.57,166.68,166.59,0.72]
[1762201900135,31.5932515,166.69,166.59,0.72]
[1762201900321,0.57,166.67,166.59,0.72]
[1762201900636,5.57198178,166.67,166.59,0.72]
[1762201900813,5.00198178,166.64,166.56,6.72367525]
[1762201901344,3.88721737,166.65,166.59,20.592]
[1762201901548,3.88721737,166.72,166.63,20.592]
[1762201901849,3.88721737,166.74,166.67,20.592]
[1762201902022,4.45721737,166.75,166.67,20.592]
[1762201902219,4.45721737,166.75,166.68,0.72]
[1762201902220,3.88721737,166.74,166.68,0.72]
[1762201902427,3.88721737,166.73,166.67,20.592]
[1762201902717,3.88721737,166.73,166.68,5.99952003]
[1762201902923,4.45721737,166.74,166.68,0.72]
[1762201903139,0.57,166.74,166.68,0.72]
[1762201903344,3.88721737,166.73,166.68,0.72]
[1762201903641,3.88721737,166.72,166.67,20.592]
[1762201903937,0.14216157,166.7,166.63,6.72118773]
[1762201904253,4.82031871,166.68,166.63,0.72]
[1762201904544,8.88919915,166.69,166.63,0.72]
[1762201904545,8.70753608,166.67,166.63,0.72]
[1762201904839,3.88721737,166.66,166.63,0.72]
[1762201905030,3.88721737,166.65,166.63,0.72]
[1762201905232,4.82031871,166.68,166.63,0.72]
[1762201905233,3.88721737,166.64,166.63,0.72]
[1762201905429,3.88721737,166.67,166.63,0.72]
[1762201905630,3.88721737,166.66,166.63,6.72126858]
[1762201905837,3.88721737,166.65,166.63,6.72126858]
[1762201906061,3.88721737,166.64,166.63,6.72126858]
[1762201906646,3.88721737,166.64,166.63,0.72]
[1762201906826,3.88721737,166.64,166.6,0.72]
[1762201907027,3.88721737,166.63,166.6,0.72]
[1762201907230,3.88721737,166.62,166.6,0.72]
[1762201907532,3.88721737,166.61,166.6,0.72]
[1762201908947,3.88721737,166.61,166.6,6.72240096]
[1762201909747,3.93201291,166.61,166.59,6.00269937]
[1762201909934,3.93181463,166.6,166.59,6.72269937]
[1762201910622,3.93181463,166.63,166.59,21.72960254]
[1762201910821,3.93181463,166.62,166.6,0.72]
[1762201911024,3.93181463,166.61,166.6,6.72240096]
[1762201912337,3.93181463,166.61,166.57,0.72]
[1762201912543,3.93181463,166.61,166.54,9.78882769]
[1762201912544,3.93181463,166.6,166.51,21.73975856]
[1762201912743,3.93181463,166.59,166.54,20.592]
[1762201912951,3.93181463,166.58,166.55,6.00420294]
[1762201913125,3.93181463,166.6,166.55,6.72420294]
[1762201913334,3.93181463,166.59,166.56,0.72]
[1762201913531,3.93181463,166.58,166.57,20.592]
[1762201913734,3.93181463,166.62,166.56,0.72]
[1762201914037,3.93181463,166.61,166.56,0.72]
[1762201914245,3.93181463,166.6,166.56,0.72]
[1762201914442,3.93181463,166.59,166.56,0.72]
[1762201914656,3.93181463,166.58,166.56,0.72]
[1762201914841,10.39230049,166.62,166.56,0.72]
[1762201914842,3.93181463,166.61,166.56,0.72]
[1762201915048,3.93181463,166.6,166.56,6.72364499]
[1762201915245,3.93181463,166.59,166.56,6.72364499]
[1762201915556,3.93181463,166.61,166.56,6.72364499]
[1762201915747,3.93181463,166.6,166.56,6.72364499]
[1762201916052,3.93181463,166.59,166.56,6.72364499]
[1762201916249,3.93181463,166.61,166.56,6.72364499]
[1762201916450,3.93181463,166.6,166.56,6.72364499]
[1762201916631,3.93181463,166.59,166.56,6.72364499]
[1762201916830,3.93181463,166.61,166.56,6.72364499]
[1762201917056,3.93181463,166.6,166.56,6.72364499]
[1762201917350,3.93181463,166.59,166.56,6.72364499]
[1762201917555,3.93181463,166.61,166.56,6.72364499]
[1762201917733,3.93181463,166.6,166.56,6.72364499]
[1762201917932,3.93181463,166.59,166.56,6.72364499]
[1762201918232,0.57,166.62,166.56,6.72364499]
[1762201918233,3.93181463,166.61,166.56,6.72364499]
[1762201918437,3.93181463,166.6,166.56,0.72]
[1762201918640,3.93181463,166.61,166.56,0.72]
[1762201918962,3.93181463,166.6,166.56,6.72380395]
[1762201919167,3.93181463,166.61,166.56,6.72380395]
[1762201919366,4.50181463,166.62,166.56,6.72380395]
[1762201919562,3.93181463,166.61,166.56,6.72380395]
[1762201919942,0.57,166.62,166.57,0.72]
[1762201920155,4.50181463,166.62,166.57,0.72]
[1762201920358,0.57,166.61,166.55,6.0041287]
[1762201920672,0.57,166.61,166.5,0.2]
[1762201920673,8.93379641,166.6,166.5,0.2]
[1762201920968,3.93181463,166.6,166.58,20.592]
[1762201921155,3.93181463,166.66,166.62,20.592]
[1762201921340,3.93181463,166.7,166.66,20.592]
[1762201921541,0.57,166.75,166.66,20.592]
[1762201921542,3.93181463,166.73,166.66,20.592]
[1762201921859,3.93181463,166.74,166.67,0.72]
[1762201922043,3.93181463,166.73,166.66,20.592]
[1762201922247,3.93181463,166.72,166.67,0.72]
[1762201922442,4.50181463,166.73,166.66,20.592]
[1762201922760,8.93379641,166.74,166.66,20.592]
[1762201923059,3.93181463,166.73,166.66,26.59211202]
[1762201923359,5.00198178,166.69,166.62,0.68]
[1762201923555,8.75213334,166.71,166.63,0.68]
[1762201923763,8.75213334,166.72,166.63,0.68]
[1762201923945,3.93181463,166.72,166.65,20.592]
[1762201924152,0.14216157,166.73,166.65,20.592]
[1762201924341,0.71216157,166.73,166.66,0.68]
[1762201924548,9.64595798,166.73,166.65,20.592]
[1762201924782,0.57,166.72,166.65,21.272]
[1762201924963,0.14216157,166.71,166.63,0.68]
[1762201925142,3.93181463,166.72,166.62,21.00588164]
[1762201925348,4.6439762,166.74,166.66,20.592]
[1762201925654,4.6439762,166.74,166.67,0.68]
[1762201927370,4.6439762,166.74,166.68,5.99952003]
[1762201927556,4.6439762,166.74,166.67,6.67980619]
[1762201927756,0.71216157,166.74,166.67,6.67980619]
[1762201928080,3.93181463,166.75,166.68,0.68]
[1762201928250,0.71216157,166.75,166.68,0.68]
[1762201929390,0.71216157,166.75,166.69,5.99916011]
[1762201929689,3.93181463,166.76,166.69,41.5890604]
[1762201929849,3.9525925,166.79,166.73,20.592]
[1762201930049,8.87291121,166.84,166.74,9.78882769]
[1762201930253,0.1,166.84,166.74,10.46882769]
[1762201930450,4.0525925,166.84,166.77,20.592]
[1762201930651,0.1,166.84,166.77,20.592]
[1762201930860,0.1,166.84,166.77,21.272]
[1762201931553,5.00198178,166.82,166.72,0.68]
[1762201931765,5.00198178,166.81,166.71,0.68]
[1762201931957,9.93098926,166.81,166.71,0.68]
[1762201932164,5.00198178,166.78,166.71,0.68]
[1762201932364,0.14216157,166.78,166.71,0.68]
[1762201932672,5.71414335,166.78,166.71,0.68]
[1762201932852,5.00198178,166.77,166.71,0.68]
[1762201933173,5.00198178,166.74,166.67,0.68]
[1762201933376,0.71216157,166.77,166.68,5.99952003]
[1762201933377,5.00198178,166.75,166.68,5.99952003]
[1762201933870,20.592,166.82,166.71,20.592]
[1762201934076,0.14216157,166.82,166.72,0.68]
[1762201934264,0.71216157,166.82,166.72,0.68]
[1762201934575,5.00198178,166.79,166.72,0.68]
[1762201934876,5.00198178,166.78,166.72,0.68]
[1762201935265,5.57198178,166.78,166.72,0.68]
[1762201935458,11.56793587,166.78,166.72,0.68]
[1762201935772,5.00198178,166.77,166.69,5.99910613]
[1762201935954,5.00198178,166.75,166.68,0.68]
[1762201936149,0.14216157,166.76,166.68,0.68]
[1762201936150,5.00198178,166.74,166.68,0.68]
[1762201936351,5.00198178,166.72,166.66,0.68]
[1762201936557,5.00198178,166.72,166.64,6.00096015]
[1762201936750,5.00198178,166.69,166.64,0.68]
[1762201936967,5.00198178,166.7,166.64,0.68]
[1762201937273,5.71414335,166.71,166.64,0.68]
[1762201937461,5.00198178,166.7,166.64,0.68]
[1762201937855,5.00198178,166.7,166.64,21.272]
[1762201938176,5.00198178,166.69,166.64,21.272]
[1762201938381,6.71074994,166.71,166.64,21.272]
[1762201938559,5.00198178,166.69,166.64,0.68]
[1762201938758,5.00198178,166.68,166.61,0.68]
[1762201939075,5.00198178,166.65,166.58,0.68]
[1762201939368,5.00198178,166.65,166.59,0.68]
[1762201939582,5.00198178,166.64,166.57,0.68]
[1762201939779,5.00198178,166.63,166.57,0.68]
[1762201939969,5.00198178,166.64,166.57,0.68]
[1762201940276,11.57264734,166.65,166.57,0.68]
[1762201940479,5.00198178,166.64,166.57,0.68]
[1762201940680,6.57066556,166.65,166.57,0.68]
[1762201940861,5.00198178,166.64,166.57,0.68]
[1762201941057,5.57198178,166.65,166.57,0.68]
[1762201941270,5.00198178,166.63,166.57,0.68]
[1762201941657,5.00198178,166.63,166.57,6.6834446]
[1762201941859,5.71414335,166.64,166.57,6.6834446]
[1762201942475,0.71216157,166.64,166.57,6.0034446]
[1762201942780,0.57,166.71,166.6,20.592]
[1762201942963,6.54143714,166.76,166.64,20.592]
[1762201942964,11.56934294,166.74,166.64,20.592]
[1762201943160,4.51489142,166.73,166.65,0.68]
[1762201943379,5.57198178,166.73,166.65,0.68]
[1762201943584,0.57,166.72,166.65,6.68059557]
[1762201943885,4.51489142,166.73,166.66,0.68]
[1762201944083,0.57,166.73,166.66,0.68]
[1762201944469,11.56974639,166.73,166.66,0.68]
[1762201944673,3.94489142,166.72,166.66,0.68]
[1762201944985,5.14414335,166.71,166.64,20.592]
[1762201945169,5.00198178,166.7,166.63,0.68]
[1762201945573,5.14414335,166.69,166.63,0.68]
[1762201945797,5.14414335,166.69,166.6,6.0023075]
[1762201945798,5.00198178,166.67,166.6,6.68239274]
[1762201945960,5.00198178,166.67,166.61,0.68]
[1762201946166,5.57198178,166.67,166.59,21.272]
[1762201946397,8.43112485,166.66,166.59,21.272]
[1762201946570,7.71896328,166.65,166.59,0.68]
[1762201947791,7.71896328,166.63,166.56,6.68382371]
[1762201948195,20.592,166.65,166.57,0.69]
[1762201948496,7.71896328,166.66,166.59,20.592]
[1762201948707,7.71896328,166.64,166.59,20.592]
[1762201948997,7.71896328,166.63,166.57,0.69]
[1762201949372,0.14216157,166.65,166.57,0.69]
[1762201949581,0.14216157,166.65,166.58,6.00312162]
[1762201949805,7.86112485,166.65,166.58,6.00312162]
[1762201949983,7.86112485,166.65,166.58,6.69312162]
[1762201950310,7.71896328,166.64,166.58,0.69]
[1762201950517,7.71896328,166.64,166.56,20.592]
[1762201950518,7.71896328,166.62,166.56,20.592]
[1762201950808,7.71896328,166.59,166.54,0.69]
[1762201951580,13.72181846,166.59,166.54,0.69]
[1762201951914,0.14216157,166.6,166.5,0.2]
[1762201952087,6.11380152,166.66,166.5,0.2]
[1762201952088,21.162,166.62,166.52,20.592]
[1762201952290,7.71896328,166.6,166.52,20.592]
[1762201952510,7.71896328,166.6,166.53,0.67]
[1762201953501,13.72144034,166.6,166.53,6.67492314]
[1762201953707,0.14216157,166.6,166.53,6.67492314]
[1762201955008,6.14468209,166.6,166.53,6.67492314]
[1762201955189,13.86364537,166.6,166.53,0.67]
[1762201955904,13.86364537,166.6,166.53,6.67489126]
[1762201956105,7.86112485,166.6,166.53,6.67489126]
[1762201956610,0.14216157,166.6,166.54,0.67]
[1762201957887,0.14216157,166.6,166.54,6.67449869]
[1762201958804,0.14216157,166.6,166.54,0.67]
[1762201959899,6.14459014,166.6,166.54,0.67]
[1762201960317,0.14216157,166.6,166.54,6.67454734]
[1762201960781,7.20987573,166.67,166.57,20.592]
[1762201960986,0.57,166.65,166.57,20.592]
[1762201961187,6.57081311,166.65,166.58,0.67]
[1762201961411,6.57081311,166.65,166.57,26.5953224]
[1762201961412,7.71896328,166.64,166.57,20.592]
[1762201961586,7.71896328,166.64,166.54,15.01140867]
[1762201961587,7.71896328,166.63,166.56,6.673772]
[1762201962022,0.14216157,166.63,166.57,0.67]
[1762201963398,0.71216157,166.63,166.55,0.67]
[1762201964399,0.71216157,166.63,166.52,0.67]
[1762201964400,7.71896328,166.58,166.52,0.67]
[1762201964598,7.71896328,166.54,166.5,0.2]
[1762201964920,0.14216157,166.56,166.5,0.2]
[1762201965219,7.71896328,166.55,166.5,0.2]
[1762201965515,7.71896328,166.55,166.5,0.87]
[1762201967697,20.73416157,166.56,166.5,0.2]
[1762201967898,0.57,166.55,166.5,0.2]
[1762201968126,8.28896328,166.55,166.5,0.2]
[1762201968523,8.28896328,166.55,166.5,0.87]
[1762201969731,0.57,166.54,166.5,0.2]
[1762201969912,7.71896328,166.51,166.5,0.2]
[1762201970117,17.50779097,166.51,166.5,0.2]
[1762201970301,18.21995254,166.51,166.5,0.2]
[1762201970501,22.14206298,166.51,166.5,0.2]
[1762201971640,28.14770828,166.51,166.5,0.2]
[1762201971940,20.428745,166.51,166.5,0.2]
[1762201972102,30.38082769,166.47,166.44,0.2]
[1762201972306,7.86112485,166.45,166.44,0.2]
[1762201972741,8.43112485,166.45,166.44,0.2]
[1762201973527,26.59946434,166.46,166.44,0.2]
[1762201973731,7.71896328,166.45,166.44,0.2]
[1762201975203,14.29642762,166.46,166.44,0.2]
[1762201976010,8.28896328,166.45,166.44,0.2]
[1762201976212,7.71896328,166.45,166.44,0.2]
[1762201976413,18.21995254,166.45,166.44,0.2]
[1762201976817,13.72642762,166.46,166.44,0.2]
[1762201977009,6.57746434,166.46,166.44,0.2]
[1762201977211,14.29642762,166.46,166.44,0.2]
[1762201977732,7.71896328,166.45,166.44,0.2]
[1762201977939,14.438935,166.45,166.44,0.2]
[1762201978133,18.34728346,166.45,166.44,0.2]
[1762201978319,17.77728346,166.45,166.44,0.2]
[1762201978643,4.05051003,166.45,166.44,0.2]
[1762201978827,17.77728346,166.45,166.44,0.2]
[1762201979520,11.76947331,166.45,166.44,0.2]
[1762201979925,3.90834846,166.45,166.44,0.2]
[1762201980518,9.91582339,166.46,166.44,0.2]
[1762201980789,3.90834846,166.46,166.44,0.2]
[1762201980915,4.91297638,166.53,166.47,20.592]
[1762201981110,0.68,166.56,166.47,20.592]
[1762201981316,4.91297638,166.58,166.48,0.67]
[1762201981515,0.68,166.58,166.48,0.67]
[1762201981742,12.63193966,166.59,166.48,0.67]
[1762201981743,7.71896328,166.59,166.48,0.67]
[1762201981925,6.56051737,166.63,166.48,0.67]
[1762201981926,20.592,166.56,166.48,0.67]
[1762201982441,8.41896328,166.55,166.48,0.67]
[1762201983030,0.7,166.55,166.48,6.6766497]
[1762201983224,20.592,166.54,166.48,0.67]
[1762201983427,20.592,166.54,166.49,0.66]
[1762201983831,6.00492403,166.53,166.47,0.66]
[1762201984136,26.59662824,166.54,166.48,0.66]
[1762201984333,20.592,166.54,166.48,0.66]
[1762201985040,8.56112485,166.54,166.48,0.66]
[1762201985238,8.56112485,166.54,166.44,0.86]
[1762201985239,7.71896328,166.51,166.44,0.86]
[1762201985442,7.71896328,166.5,166.45,0.66]
[1762201985637,0.84216157,166.52,166.45,0.66]
[1762201985942,13.72486153,166.51,166.45,0.66]
[1762201986661,7.71896328,166.5,166.44,0.2]
[1762201986845,7.71896328,166.47,166.44,0.2]
[1762201987250,0.7,166.49,166.44,0.2]
[1762201987458,8.41896328,166.49,166.44,0.86]
[1762201987759,7.71896328,166.48,166.44,0.2]
[1762201987962,13.72629635,166.47,166.44,0.2]
[1762201988145,7.71896328,166.46,166.44,0.2]
[1762201988461,6.00733307,166.47,166.44,0.2]
[1762201988462,29.15312485,166.45,166.44,0.2]
[1762201988759,20.592,166.45,166.44,0.2]
[1762201989436,6.70718706,166.47,166.44,0.2]
[1762201989639,13.72615034,166.47,166.44,0.2]
[1762201989839,0.7,166.46,166.44,0.2]
[1762201990039,6.70745406,166.46,166.44,0.2]
[1762201990767,8.41896328,166.45,166.44,0.2]
[1762201990963,29.15312485,166.45,166.44,0.2]
[1762201991149,21.43416157,166.45,166.44,0.2]
[1762201991351,38.94195254,166.45,166.44,0.2]
[1762201992169,44.94976269,166.45,166.44,0.2]
[1762201992849,48.8687214,166.45,166.44,0.2]
[1762201993741,31.36093043,166.45,166.44,0.2]
[1762201994065,39.07989371,166.45,166.44,0.2]
[1762201994768,48.8687214,166.45,166.44,0.2]
[1762201995880,39.07989371,166.45,166.44,0.2]
[1762201996180,48.8687214,166.45,166.44,0.2]
[1762201998047,40.44975812,166.45,166.44,0.2]
[1762201998470,41.14975812,166.45,166.44,0.2]
[1762201999455,4.91297638,166.5,166.44,0.86]
[1762201999660,3.91945271,166.51,166.44,0.86]
[1762201999867,3.91945271,166.52,166.45,0.66]
[1762202000166,13.7082804,166.52,166.45,0.66]
[1762202000365,19.71360316,166.52,166.45,0.66]
[1762202000559,3.91945271,166.51,166.45,0.66]
[1762202001085,3.91945271,166.51,166.45,6.66775398]
[1762202001266,6.00528952,166.52,166.45,0.66]
[1762202001468,24.51145271,166.54,166.46,0.66]
[1762202001671,3.91945271,166.53,166.46,0.66]
[1762202001870,9.92370434,166.55,166.46,0.66]
[1762202002180,17.64995254,166.54,166.46,0.66]
[1762202002382,30.51637674,166.53,166.46,0.66]
[1762202002681,4.06161428,166.52,166.46,0.66]
[1762202003459,3.91945271,166.52,166.46,6.66741505]
[1762202003659,3.91945271,166.52,166.46,0.66]
[1762202003889,3.91945271,166.53,166.47,0.66]
[1762202004382,3.91945271,166.53,166.48,6.00672753]
[1762202004585,3.91945271,166.53,166.47,0.66]
[1762202005286,3.91945271,166.53,166.47,6.66703371]
[1762202005795,3.91945271,166.53,166.48,0.66]
[1762202006370,3.91945271,166.53,166.49,6.00636674]
[1762202006695,3.91945271,166.56,166.49,6.00636674]
[1762202006999,8.83242909,166.59,166.5,0.66]
[1762202007183,0.7,166.59,166.5,0.66]
[1762202007974,6.70292518,166.59,166.51,6.0056453]
[1762202008294,17.64995254,166.58,166.5,0.66]
[1762202008492,5.15097027,166.56,166.5,0.66]
[1762202008688,9.07042298,166.56,166.5,0.66]
[1762202008885,0.14216157,166.54,166.47,21.262]
[1762202009120,0.14216157,166.52,166.44,0.2]
[1762202009281,14.93979796,166.52,166.46,0.67]
[1762202009476,3.91945271,166.51,166.46,0.67]
[1762202010479,6.006006,166.5,166.46,0.67]
[1762202010684,10.62545871,166.5,166.44,0.87]
[1762202011984,10.62545871,166.5,166.44,0.2]
[1762202011985,5.85097027,166.49,166.44,0.2]
[1762202012188,9.77042298,166.49,166.44,0.2]
[1762202012494,6.00672753,166.48,166.44,0.92]
[1762202012699,9.92618024,166.48,166.44,0.92]
[1762202013293,3.91945271,166.49,166.45,0.72]
[1762202013491,9.92553607,166.5,166.45,0.72]
[1762202014092,10.64553607,166.5,166.45,0.72]
[1762202015006,4.63945271,166.5,166.45,0.72]
[1762202015191,3.91945271,166.5,166.45,6.72779209]
[1762202015383,3.91945271,166.5,166.45,0.72]
[1762202015583,3.91945271,166.5,166.46,0.72]
[1762202017501,9.9255622,166.5,166.44,0.2]
[1762202017707,10.6455622,166.5,166.45,0.72]
[1762202020900,4.63945271,166.5,166.45,0.72]
[1762202021111,10.64547241,166.5,166.45,0.72]
[1762202022383,9.92547241,166.5,166.45,0.72]
[1762202022587,0.72,166.49,166.45,0.72]
[1762202022809,6.72662568,166.49,166.45,0.72]
[1762202023014,9.92553542,166.5,166.45,0.72]
[1762202023198,10.64553542,166.5,166.45,0.72]
[1762202023611,3.91945271,166.5,166.45,0.72]
[1762202023813,9.92546642,166.5,166.45,0.72]
[1762202024115,0.72,166.49,166.45,0.72]
[1762202024445,0.14216157,166.48,166.44,0.2]
[1762202024928,10.78842294,166.48,166.44,0.2]
[1762202026221,0.72,166.47,166.44,0.2]
[1762202026410,4.63945271,166.47,166.44,0.2]
[1762202026792,6.00744923,166.46,166.44,0.2]
[1762202028326,10.64660395,166.47,166.44,0.2]
[1762202032155,9.78882769,166.45,166.44,0.2]
[1762202032359,14.93979796,166.45,166.44,0.2]
[1762202032521,14.57044197,166.45,166.44,0.2]
[1762202032937,20.57825212,166.45,166.44,0.2]
[1762202033143,25.58706082,166.45,166.44,0.2]
[1762202033452,20.57825212,166.45,166.44,0.2]
[1762202034821,20.592,166.42,166.37,0.2]
[1762202035022,5.0088087,166.38,166.37,0.2]
[1762202035234,3.91945271,166.39,166.37,0.2]
[1762202035454,4.63945271,166.39,166.37,0.2]
[1762202035821,3.91945271,166.4,166.37,6.93066442]
[1762202036023,32.02878131,166.51,166.37,6.93066442]
[1762202036024,3.91945271,166.45,166.37,6.93066442]
[1762202036326,19.71511665,166.48,166.38,0.72]
[1762202036538,3.91945271,166.47,166.38,0.72]
[1762202036739,3.91945271,166.47,166.4,20.592]
[1762202036946,10.64517777,166.51,166.41,41.62438987]
[1762202037151,3.91945271,166.52,166.42,9.78882769]
[1762202037349,6.72495816,166.53,166.43,0.72]
[1762202037350,6.00495816,166.53,166.43,0.72]
[1762202038326,6.72495816,166.53,166.43,0.72]
[1762202038723,6.72495816,166.53,166.44,6.00817111]
[1762202039033,15.55738725,166.53,166.45,0.72]
[1762202039234,3.91945271,166.52,166.45,0.72]
[1762202039728,6.0056453,166.51,166.45,0.72]
[1762202040238,14.56123779,166.5,166.43,21.312]
[1762202040447,14.56123779,166.5,166.43,0.72]
[1762202040745,0.14216157,166.49,166.43,0.72]
[1762202040951,5.87097027,166.49,166.43,0.72]
[1762202041148,3.91945271,166.5,166.43,6.72853045]
[1762202041350,3.91945271,166.52,166.44,20.592]
[1762202041536,3.91945271,166.52,166.46,20.592]
[1762202041723,3.91945271,166.55,166.5,20.592]
[1762202041929,3.91945271,166.56,166.51,6.0056453]
[1762202042232,3.91945271,166.57,166.51,6.7256453]
[1762202042435,3.91945271,166.56,166.52,0.72]
[1762202042638,3.91945271,166.57,166.52,0.72]
[1762202042826,8.83242909,166.6,166.54,20.592]
[1762202043031,3.91945271,166.62,166.56,20.592]
[1762202043553,3.91945271,166.65,166.57,0.72]
[1762202044050,3.91945271,166.65,166.58,6.00312162]
[1762202044253,0.1,166.66,166.57,0.72]
[1762202044443,3.91945271,166.65,166.57,6.72346794]
[1762202044650,8.83242909,166.65,166.57,0.72]
[1762202044849,3.91945271,166.64,166.58,0.72]
[1762202045242,8.83242909,166.65,166.58,0.72]
[1762202045636,14.8332911,166.65,166.58,0.72]
[1762202046057,14.89779592,166.65,166.58,0.72]